fUSD/lending_fUSD_20250214
["ID","MTS","AMOUNT","RATE_DAILY","PERIOD"]
[353034426,1739501434201,-500.0,0.00017894,2]
[353034427,1739501434211,-500.0,0.00017894,2]
[353034428,1739501434222,-262.92479201,0.00017894,2]
[353034429,1739501434232,-381.99149868,0.00017897,2]
[353034430,1739501434241,-4013.08491501,0.000179,2]
[353034431,1739501434251,-172.27290823,0.000179,2]
[353034432,1739501434263,-179.85363282,0.000179,2]
[353034433,1739501434272,-206.9372794,0.000179,2]
[353034434,1739501434282,-4737.32358119,0.000179,2]
[353034435,1739501434292,-24505.55981601,0.000179,2]
[353034436,1739501434302,-1000.0,0.00017904,2]
[353034437,1739501434312,-150.0,0.00017912,2]
[353034438,1739501434322,-226.26870378,0.00017926,21]
[353034439,1739501434331,-150.0,0.00017956,2]
[353034440,1739501434342,-610.22042802,0.00017975,2]
[353034441,1739501434352,-500.0,0.00017975,2]
[353034442,1739501434362,-500.0,0.00017975,2]
[353034443,1739501434372,-500.0,0.00017976,2]
[353034444,1739501434382,-200.0,0.00017976,2]
[353034445,1739501434391,-500.0,0.00017976,2]
[353034446,1739501434401,-500.0,0.00017976,2]
[353034447,1739501434411,-183.15,0.00017976,2]
[353034448,1739501434420,-500.0,0.00017976,2]
[353034449,1739501434430,-500.0,0.00017976,2]
[353034450,1739501434439,-500.0,0.00017989,2]
[353034451,1739501434448,-500.0,0.00017989,2]
[353034452,1739501434460,-500.0,0.00017989,2]
[353034453,1739501434469,-500.0,0.00017989,2]
[353034454,1739501434479,-500.0,0.00017989,2]
[353034455,1739501434489,-500.0,0.00017989,2]
[353034456,1739501434499,-505.84677726,0.00017989,2]
[353034457,1739501434508,-616784.528765,0.0001799,3]
[353034458,1739501434518,-496.2103314,0.00017997,2]
[353034459,1739501434528,-551.0322699,0.00017997,2]
[353034460,1739501434537,-591.7149925,0.00017997,2]
[353034461,1739501434547,-1388.27392766,0.00017999,5]
[353034462,1739501434557,-1388.27392766,0.00017999,5]
[353034463,1739501434567,-500.0,0.00017999,2]
[353034464,1739501434576,-500.0,0.00017999,2]
[353034465,1739501434586,-500.0,0.00017999,2]
[353034466,1739501434596,-500.0,0.00017999,2]
[353034467,1739501434605,-439.12,0.00017999,2]
[353034468,1739501434615,-999.0,0.00017999,2]
[353034469,1739501434624,-150.0,0.00017999,2]
[353034470,1739501434633,-1247.0,0.00017999,2]
[353034471,1739501434642,-923410.33414348,0.00018,3]
[353034472,1739501434655,-3860.02648129,0.00018,3]
[353034473,1739501434666,-156984.35216129,0.00018,3]
[353034474,1739501434677,-59037.95335292,0.00018,3]
[353034475,1739501434689,-400.86620647,0.00018,3]
[353034483,1739501438163,-150.0,0.00014999,2]
[353034484,1739501438174,-150.0,0.00017999,2]
[353034485,1739501438189,-128.70990648,0.00018,3]
[353034488,1739501440142,-147.06455601,0.00018,3]
[353034489,1739501440152,-1032.6890508,0.00018,2]
[353034490,1739501440164,-23769.33207788,0.00018,3]
[353034501,1739501443114,-369.44041999,0.00017893,2]
[353034502,1739501443123,-1129.0,0.00017999,2]
[353034503,1739501443133,-14572.07514209,0.00018,3]
[353034504,1739501443168,-5895.21219517,0.00018,3]
[353034505,1739501443327,-2434.15,0.00018,3]
[353034508,1739501446337,-496.14,0.00017999,2]
[353034509,1739501446347,-77.62922422,0.00018,3]
[353034510,1739501601581,161.9343945,0.000136,30]
[353034511,1739501601608,500.0,0.000136,30]
[353034512,1739501630929,9382.53415071,0.00013,30]
[353034517,1739502632608,-5000.0,8.973e-05,2]
[353034518,1739502632620,-200.0,9.085e-05,2]
[353034519,1739502632630,-161.10100952,9.197e-05,2]
[353034520,1739502632639,-200.0,9.568e-05,2]
[353034521,1739502632650,-200.0,9.87e-05,2]
[353034522,1739502632661,-150.0,9.87e-05,2]
[353034523,1739502632671,-550.0,0.00013,2]
[353034524,1739502632680,-155.32,0.00013699,2]
[353034525,1739502632690,-501.0,0.00013973,2]
[353034526,1739502632699,-200.0,0.00014323,2]
[353034527,1739502632709,-2000.0,0.00014323,2]
[353034528,1739502632719,-250.0,0.00014323,2]
[353034529,1739502632728,-768.54,0.00014323,2]
[353034530,1739502632738,-905.22,0.00014491,2]
[353034531,1739502632747,-200.19,0.000145,2]
[353034532,1739502632756,-150.0,0.00014999,2]
[353034533,1739502632766,-1111.818,0.00014999,2]
[353034534,1739502632776,-600.0,0.00015,2]
[353034535,1739502632787,-2000.0,0.00015853,2]
[353034536,1739502632797,-3635.80877044,0.00015903,2]
[353034537,1739502632813,-915.47591036,0.00015903,2]
[353034538,1739502632824,-1080.43754186,0.00015903,2]
[353034539,1739502632839,-18268.27777734,0.00015903,2]
[353034541,1739502632849,-1000.0,0.00015903,2]
[353034543,1739502632858,-500.0,0.00015915,2]
[353034545,1739502632868,-200.0,0.00016042,2]
[353034547,1739502632879,-300.0,0.00016126,2]
[353034549,1739502632889,-252.1604942,0.000162,2]
[353034551,1739502632902,-152.72420686,0.000162,2]
[353034553,1739502632912,-196.5097352,0.000162,2]
[353034555,1739502632921,-151.87993698,0.000162,2]
[353034557,1739502632931,-526.23,0.00016207,2]
[353034558,1739502632941,-1000.0,0.00016626,2]
[353034559,1739502632951,-300.0,0.00016657,2]
[353034560,1739502632960,-440.09,0.00016658,30]
[353034561,1739502632970,-905.22,0.00016755,2]
[353034562,1739502632980,-341.22829144,0.00016843,2]
[353034565,1739502638159,-1932.4073,8.851e-05,2]
[353034566,1739502638169,-1158.77170856,0.00016843,2]
[353034567,1739502638178,-1449.82,0.00016894,2]
[353034568,1739502638187,-500.0,0.00016924,2]
[353034569,1739502638197,-500.0,0.00016924,2]
[353034570,1739502638206,-600.0,0.00016924,2]
[353034571,1739502638216,-650.0,0.00017,2]
[353034572,1739502638225,-4327.64463568,0.000175,3]
[353034573,1739502638238,-25672.35536432,0.000175,3]
[353034574,1739502638247,-177.2542469,0.00017639,2]
[353034575,1739502638258,-370.24,0.00017836,2]
[353034576,1739502638267,-881.41,0.00017836,2]
[353034577,1739502638277,-500.0,0.00017856,2]
[353034578,1739502638286,-1000.0,0.00017891,2]
[353034579,1739502638295,-500.0,0.00017894,7]
[353034580,1739502638305,-154.16025672,0.000179,2]
[353034581,1739502638314,-166.50971339,0.00017973,2]
[353034582,1739502638323,-1876.73,0.00017988,2]
[353034583,1739502638333,-500.30323679,0.00017989,2]
[353034584,1739502638342,-500.0,0.00017989,2]
[353034585,1739502638351,-500.0,0.00017989,2]
[353034586,1739502638360,-500.0,0.00017989,2]
[353034587,1739502638370,-500.0,0.00017989,2]
[353034588,1739502638379,-500.0,0.00017989,2]
[353034589,1739502638389,-559.74185859,0.00017989,2]
[353034590,1739502638398,-500.0,0.00017989,2]
[353034591,1739502638409,-500.0,0.00017989,2]
[353034592,1739502638418,-500.0,0.00017989,2]
[353034593,1739502638427,-500.0,0.00017989,2]
[353034594,1739502638437,-500.0,0.00017989,2]
[353034595,1739502638447,-500.0,0.00017989,2]
[353034596,1739502638456,-500.0,0.00017989,2]
[353034597,1739502638466,-500.0,0.00017989,2]
[353034598,1739502638475,-500.0,0.00017989,2]
[353034599,1739502638484,-200.0,0.00017989,2]
[353034600,1739502638494,-500.0,0.00017989,2]
[353034601,1739502638504,-545.18,0.00017989,2]
[353034602,1739502638514,-500.0,0.00017989,2]
[353034603,1739502638524,-500.0,0.00017989,2]
[353034605,1739502638533,-500.0,0.00017989,2]
[353034607,1739502638543,-506.35690374,0.00017989,2]
[353034608,1739502638552,-500.0,0.00017989,2]
[353034610,1739502638562,-654.00611544,0.0001799,3]
[353034611,1739502638579,-442.77788711,0.0001799,3]
[353034613,1739502638590,-345.84821627,0.0001799,3]
[353034786,1739502640256,222.0,0.0002,120]
[353034791,1739502640300,-491.35,0.00016843,2]
[353034793,1739502640309,-34866.40694937,0.0001799,3]
[353034798,1739502640406,-919.99639479,0.0001799,3]
[353034799,1739502640418,-12034.848552,0.0001799,3]
[353034800,1739502640459,-2865.5,0.0001799,3]
[353034806,1739502640567,-379693.12544102,0.0001799,3]
[353034808,1739502640581,-168974.025478,0.0001799,3]
[353034810,1739502640591,-3353.1145136,0.00017996,2]
[353034812,1739502640600,-500.0,0.00017999,2]
[353034814,1739502640610,-999.0,0.00017999,2]
[353034816,1739502640621,-150.0,0.00017999,2]
[353034818,1739502640631,-1014.0,0.00017999,2]
[353034820,1739502640639,-273.11253676,0.00018,3]
[353034822,1739502640649,-516.3445254,0.00018,2]
[353034824,1739502640660,-1176968.93421651,0.00018,3]
[353034826,1739502640670,-688022.74673031,0.00018,30]
[353034828,1739502640681,-453.04661786,0.00018,30]
[353034830,1739502640693,-4758.95395944,0.00018,30]
[353034832,1739502640704,-404.76000001,0.00018,30]
[353035108,1739502643412,-150.33,0.00017343,2]
[353035110,1739502643423,-3001.67,0.00018,30]
[353035112,1739502643435,-1536.28131735,0.00018,30]
[353035114,1739502643446,-585.58864735,0.00018,30]
[353035116,1739502643458,-47515.5,0.00018,30]
[353035118,1739502643469,-3890.79851233,0.00018,30]
[353035127,1739502643543,-10004.83346608,0.00018,30]
[353035130,1739502643555,-1831.25171145,0.00018,30]
[353035135,1739502643598,-271.92848716,0.00018,30]
[353035137,1739502643609,-120500.0,0.00018,30]
[353035703,1739503831499,-647.1794,8.973e-05,2]
[353035704,1739503831509,-200.0,9.068e-05,2]
[353035705,1739503831519,-200.0,9.461e-05,2]
[353035706,1739503831529,-150.0,9.736e-05,2]
[353035707,1739503831539,-1804.86709014,9.87e-05,2]
[353035708,1739503831555,-263.9334462,9.87e-05,2]
[353035709,1739503831566,-295.63804909,9.87e-05,2]
[353035710,1739503831578,-565.5527439,9.87e-05,2]
[353035711,1739503831590,-2737.33492461,9.87e-05,2]
[353035712,1739503831601,-605.37649189,9.87e-05,2]
[353035713,1739503831612,-150.0,9.87e-05,2]
[353035714,1739503831622,-200.0,9.87e-05,2]
[353035715,1739503831631,-631.97934508,9.937e-05,2]
[353035716,1739503831644,-2526.23637572,9.937e-05,2]
[353035717,1739503831654,-509.15638367,9.973e-05,2]
[353035718,1739503831664,-150.0,9.999e-05,2]
[353035719,1739503831674,-617.7490954,9.999e-05,2]
[353035720,1739503831684,-174298.13131602,0.0001,2]
[353035721,1739503831695,-59037.95335292,0.0001,2]
[353035722,1739503831706,-1998.10131452,0.0001,2]
[353035723,1739503831718,-1257.00900009,0.0001,2]
[353035724,1739503831729,-1933.82557355,0.0001,2]
[353035833,1739503837503,-5396.37905912,0.0001,2]
[353035834,1739503837516,-437.70943335,0.0001,2]
[353035835,1739503837528,-3391.46814228,0.0001,2]
[353035836,1739503837614,-299.04714267,0.0001,2]
[353035837,1739503837626,-476.81295156,0.0001,2]
[353035838,1739503837668,-376.0213201,0.0001,2]
[353035839,1739503837680,-4891.82383943,0.0001,2]
[353035840,1739503837692,-1173.64293221,0.0001,2]
[353035854,1739503839446,-626.7261,0.0001,2]
[353035855,1739503839501,-825.65268815,0.0001,2]
[353035856,1739503839720,-131851.84004628,0.0001,2]
[353035912,1739503842468,-18168.45089744,0.0001,2]
[353035913,1739503842633,-68518.26209302,0.0001,2]
[353035914,1739503842645,-11971.57773768,0.0001,2]
[353036013,1739503845704,-196500.0,0.0001,2]
[353036014,1739503845715,-239800.0,0.0001,2]
[353036030,1739505031652,-519.3438,8.973e-05,2]
[353036031,1739505031666,-200.0,9.08e-05,2]
[353036032,1739505031676,-170.62857643,9.187e-05,2]
[353036033,1739505031687,-200.0,9.341e-05,2]
[353036034,1739505031697,-1501.384,9.8e-05,2]
[353036035,1739505031706,-162.32,9.829e-05,2]
[353036036,1739505031716,-150.0,9.836e-05,2]
[353036037,1739505031726,-200.0,9.87e-05,2]
[353036038,1739505031735,-300.0,9.999e-05,2]
[353036039,1739505031745,-2496.32362357,0.0001,2]
[353036040,1739505031760,-541.345,0.0001,2]
[353036041,1739505031772,-8454.92847332,0.0001,2]
[353036042,1739505031783,-791.00211188,0.0001,2]
[353036043,1739505031795,-795.57,0.0001,2]
[353036044,1739505031815,-1108.99788812,0.0001,2]
[353036045,1739505031827,-67143.76305308,0.0001,2]
[353036046,1739505031838,-2681.37445481,0.0001,2]
[353036569,1739505037495,-1814.03961151,0.0001,2]
[353036570,1739505037507,-6409.82392561,0.0001,2]
[353036571,1739505037518,-1860.04352126,0.0001,2]
[353036572,1739505037550,-3655.2800516,0.0001,2]
[353036573,1739505037605,-630.69068571,0.0001,2]
[353036574,1739505037619,-4087.13897112,0.0001,2]
[353036575,1739505037630,-383.30923292,0.0001,2]
[353036576,1739505037661,-2862.58626485,0.0001,2]
[353036577,1739505037769,-508.90602007,0.0001,2]
[353036592,1739505039588,-1250.06,0.0001,2]
[353036593,1739505039645,-9096.64373114,0.0001,2]
[353036594,1739505039656,-8947.21879473,0.0001,2]
[353036595,1739505039668,-8943.78386462,0.0001,2]
[353036596,1739505039680,-9077.54866152,0.0001,2]
[353036597,1739505039692,-8943.84023489,0.0001,2]
[353036598,1739505039785,-436.50230456,0.0001,2]
[353036599,1739505039915,-5207.91157632,0.0001,2]
[353036600,1739505039927,-1576.56032554,0.0001,2]
[353036601,1739505040008,-1153.90900704,0.0001,2]
[353036624,1739505045722,-681.8109,8.851e-05,2]
[353036626,1739505119424,230.42268411,0.00020718,120]
[353036627,1739505151268,464.2906,8.836e-05,2]
[353036628,1739505688738,4029.22081191,0.00020718,120]
[353036629,1739505716949,2775.76702175,0.00020718,120]
[353036653,1739506231869,-300.0,8.85e-05,2]
[353036654,1739506231880,-170.62857642,8.851e-05,2]
[353036655,1739506231891,-200.0,8.851e-05,2]
[353036656,1739506231902,-500.0,8.851e-05,2]
[353036657,1739506231912,-500.0,8.851e-05,2]
[353036658,1739506231922,-500.0,8.851e-05,2]
[353036659,1739506231934,-173.80611659,8.851e-05,2]
[353036660,1739506231944,-992.33133422,8.851e-05,2]
[353036661,1739506231957,-231.00096578,8.851e-05,2]
[353036662,1739506231967,-200.0,8.907e-05,2]
[353036663,1739506231976,-2248.85157161,8.973e-05,2]
[353036664,1739506232078,-524.15002839,8.973e-05,2]
[353036665,1739506232087,-290.7457,8.973e-05,2]
[353036666,1739506232104,-162.32,9.568e-05,2]
[353036667,1739506232113,-150.0,9.581e-05,2]
[353036668,1739506232123,-420.0,9.735e-05,2]
[353036669,1739506232132,-2.46848639,9.736e-05,2]
[353036670,1739506232183,-197.53151361,9.736e-05,2]
[353036671,1739506232192,-556.57848639,9.78e-05,2]
[353036672,1739506232203,-605.2000001,9.78e-05,2]
[353036673,1739506232215,-1478.34689998,9.78e-05,2]
[353036699,1739506237745,-799.88461353,9.78e-05,2]
[353036700,1739506237755,-173.14,9.893e-05,2]
[353036701,1739506237767,-481.29792997,9.939e-05,2]
[353036702,1739506237779,-523.56207003,9.939e-05,2]
[353036703,1739506237789,-392.77792997,9.981e-05,2]
[353036704,1739506237800,-107.22207003,9.981e-05,2]
[353036705,1739506237812,-1201.107,9.999e-05,2]
[353036706,1739506237822,-214.52092997,9.999e-05,2]
[353036707,1739506237833,-77.46165807,9.999e-05,2]
[353036708,1739506237844,-500.0,9.999e-05,2]
[353036709,1739506237854,-500.0,9.999e-05,2]
[353036710,1739506237863,-475.91605763,9.999e-05,2]
[353036711,1739506237873,-500.0,9.999e-05,2]
[353036712,1739506237883,-54825.50905228,0.0001,2]
[353036713,1739506237894,-321.1250003,0.0001,2]
[353036714,1739506237906,-28178.96688687,0.0001,2]
[353036715,1739506237918,-778.83225868,0.0001,2]
[353036716,1739506237929,-1007.3626486,0.0001,2]
[353036717,1739506237959,-305.32439994,0.0001,2]
[353036718,1739506237971,-20220.0,0.0001,2]
[353036993,1739506240200,-593.6435162,0.0001,2]
[353037705,1739506245824,-843.51478865,0.0001,2]
[353037707,1739506245836,-467.96961399,0.0001,2]
[353037716,1739506245930,-111244.64471383,0.0001,2]
[353037718,1739506245943,-3491.14458549,0.0001,2]
[353037721,1739506245955,-17577.13136027,0.0001,2]
[353037724,1739506245984,-15237.39343611,0.0001,2]
[353037731,1739506246039,-548.68180259,0.0001,2]
[353037738,1739506246094,-605.16143934,0.0001,2]
[353038112,1739506440764,21476.871,8.836e-05,2]
[353038113,1739506477981,6376.4095,8.836e-05,2]
[353038114,1739506826779,15388.1634,8.836e-05,2]
[353038115,1739507123342,-1039.71,9.602e-05,2]
[353038116,1739507123369,-960.886,9.604e-05,2]
[353038117,1739507123395,-200.0,9.624e-05,2]
[353038118,1739507123422,-162.32,9.644e-05,2]
[353038119,1739507123662,-500.0,9.799e-05,2]
[353038120,1739507123690,-500.0,9.799e-05,2]
[353038121,1739507123717,-367.59160577,9.799e-05,2]
[353038122,1739507123743,-150.0,9.799e-05,2]
[353038123,1739507123769,-46119.49239423,9.8e-05,2]
[353038124,1739507127643,-50000.0,9.8e-05,2]
[353038125,1739507128926,-50000.0,9.8e-05,2]
[353038126,1739507132700,-50000.0,9.8e-05,2]
[353038127,1739507157646,-27000.0,9.8e-05,2]
[353038128,1739507314467,-300.0,9.799e-05,2]
[353038129,1739507314497,-49700.0,9.8e-05,2]
[353038130,1739507315457,-50000.0,9.8e-05,2]
[353038131,1739507318582,-20000.0,9.8e-05,2]
[353038135,1739507342697,-75000.0,9.8e-05,2]
[353038136,1739507359012,-8000.0,9.8e-05,2]
[353038137,1739507385430,6761.4039,8.836e-05,2]
[353038138,1739507396759,25632.6052,8.836e-05,2]
[353038149,1739507431980,-296.880003,8.973e-05,2]
[353038150,1739507431992,-30720.19609164,8.973e-05,2]
[353038151,1739507432036,-4122.05692744,8.973e-05,2]
[353038152,1739507432203,-698.17087792,8.973e-05,2]
[353038153,1739507432213,-103340.76446795,9.8e-05,2]
[353038154,1739507432226,-115376.65058261,9.8e-05,2]
[353038155,1739507432238,-35499.84912686,9.8e-05,2]
[353038156,1739507432252,-7584.80622634,9.8e-05,2]
[353038160,1739507437942,-1059.09355,9.8e-05,2]
[353038161,1739507438053,-6269.49777717,9.8e-05,2]
[353038162,1739507438114,-1054.44218345,9.8e-05,2]
[353038255,1739507439107,4157.8567,8.836e-05,2]
[353038305,1739507440265,-37617.98433565,9.8e-05,2]
[353038306,1739507440279,-5751.73180663,9.8e-05,2]
[353038307,1739507440291,-498.6856988,9.8e-05,2]
[353038406,1739507446100,-360970.74438235,9.8e-05,2]
[353038423,1739507454837,162.32,8.279e-05,2]
[353038424,1739507732003,9667.2592,8.836e-05,2]
[353038425,1739507945758,17740.83905823,8.836e-05,2]
[353038426,1739508239758,1000.0,8.219e-05,2]
[353038427,1739508297087,200.12296009,8.178e-05,2]
[353038429,1739508511630,162.32,6.541e-05,2]
[353038433,1739508632126,-1852.42,8.205e-05,2]
[353038434,1739508632136,-200.0,8.212e-05,2]
[353038435,1739508632145,-776.41420938,8.219e-05,2]
[353038436,1739508632154,-149.09,8.219e-05,2]
[353038437,1739508632163,-2029.56,8.219e-05,2]
[353038438,1739508632173,-300.0,8.331e-05,2]
[353038439,1739508632183,-156.69,8.332e-05,2]
[353038440,1739508632193,-776.41420937,8.332e-05,2]
[353038441,1739508632203,-1475.01492944,8.332e-05,2]
[353038442,1739508632216,-5161.70397226,8.332e-05,2]
[353038443,1739508632227,-567.48415869,8.332e-05,2]
[353038444,1739508632245,-422.13637207,8.332e-05,2]
[353038445,1739508632256,-254.33428482,8.332e-05,2]
[353038446,1739508632301,-1298.24234568,8.332e-05,2]
[353038447,1739508632314,-1028.79,8.332e-05,2]
[353038448,1739508632325,-13053.30112627,8.332e-05,2]
[353038449,1739508632335,-156.69,8.342e-05,2]
[353038450,1739508632344,-156.69,8.353e-05,2]
[353038451,1739508632354,-156.69,8.363e-05,2]
[353038452,1739508632363,-156.69,8.374e-05,2]
[353038453,1739508632373,-250.0,8.504e-05,2]
[353038454,1739508632382,-2657.12,8.556e-05,2]
[353038455,1739508632391,-3802.41,8.632e-05,2]
[353038456,1739508632402,-21403.74,8.649e-05,2]
[353038457,1739508632411,-250.0,8.683e-05,2]
[353038458,1739508632421,-23900.0,8.744e-05,2]
[353038459,1739508632430,-27854.49354177,8.836e-05,2]
[353038460,1739508632440,-6821.78,8.844e-05,2]
[353038461,1739508632450,-2500.0,8.851e-05,2]
[353038462,1739508632460,-2997.38553857,8.973e-05,2]
[353038463,1739508632471,-2002.61446143,8.973e-05,2]
[353038465,1739508632480,-150.0,8.986e-05,2]
[353038467,1739508632490,-199.83964711,9e-05,2]
[353038469,1739508632499,-150.0,9e-05,2]
[353038471,1739508632508,-173.14,9.007e-05,2]
[353038473,1739508632517,-200.0,9.026e-05,2]
[353038475,1739508632526,-200.0,9.026e-05,2]
[353038477,1739508632536,-645.35505381,9.092e-05,2]
[353038479,1739508632546,-278.1,9.092e-05,2]
[353038481,1739508632557,-200.0,9.144e-05,2]
[353038483,1739508632567,-200.0,9.296e-05,2]
[353038485,1739508632576,-306.6,9.313e-05,2]
[353038487,1739508632586,-1628.23,9.387e-05,2]
[353038489,1739508632595,-27503.79,9.458e-05,2]
[353038491,1739508632604,-500.0,9.562e-05,2]
[353038493,1739508632613,-1000.0,9.68e-05,2]
[353038494,1739508632623,-150.0,9.719e-05,2]
[353038495,1739508632633,-150.0,9.719e-05,2]
[353038496,1739508632642,-2000.0,9.782e-05,2]
[353038497,1739508632652,-300.0,9.782e-05,2]
[353038498,1739508632661,-151.95462286,9.799e-05,2]
[353038500,1739508632671,-643.95827215,9.799e-05,3]
[353038501,1739508632680,-500.0,9.799e-05,2]
[353038502,1739508632690,-190.37485381,9.799e-05,2]
[353038504,1739508632699,-617.7490954,9.799e-05,2]
[353038506,1739508632709,-18996.24734635,9.8e-05,2]
[353038508,1739508632725,-323010.00000006,9.8e-05,2]
[353038510,1739508632736,-1143.87326722,9.8e-05,2]
[353038723,1739508640310,-620.77,9.8e-05,2]
[353039015,1739509666827,390.65920717,8.219e-05,10]
[353039021,1739509832288,-472.12295122,8.219e-05,2]
[353039022,1739509832301,-811.95704878,8.219e-05,2]
[353039023,1739509832312,-200.0,8.31e-05,2]
[353039024,1739509832321,-200.0,8.394e-05,2]
[353039025,1739509832331,-1500.0,8.402e-05,2]
[353039026,1739509832340,-199.5650073,8.408e-05,2]
[353039027,1739509832352,-2735.0249927,8.408e-05,2]
[353039028,1739509832361,-2668.46,8.416e-05,2]
[353039029,1739509832371,-150.0,8.835e-05,2]
[353039030,1739509832381,-3878.92841444,8.836e-05,2]
[353039031,1739509832392,-506.57602605,8.836e-05,2]
[353039032,1739509832510,-6996.02426116,8.836e-05,2]
[353039033,1739509832521,-844.90232991,8.836e-05,2]
[353039034,1739509832533,-6497.1886532,8.836e-05,2]
[353039035,1739509832544,-2595.3150386,8.836e-05,2]
[353039036,1739509832555,-968.4851153,8.836e-05,2]
[353039037,1739509832566,-646.9888024,8.836e-05,2]
[353039038,1739509832577,-26679.24245894,8.836e-05,2]
[353039039,1739509832587,-500.0,8.836e-05,2]
[353039040,1739509832596,-500.0,8.836e-05,2]
[353039041,1739509832604,-645.3550538,8.836e-05,2]
[353039042,1739509832613,-250.0,8.959e-05,2]
[353039043,1739509832623,-14577.6738,8.973e-05,2]
[353039044,1739509832632,-2732.1496,8.973e-05,2]
[353039045,1739509832642,-150.0,9e-05,2]
[353039046,1739509832652,-150.00000001,9e-05,2]
[353039047,1739509832662,-150.0,9e-05,2]
[353039048,1739509832671,-150.0,9e-05,2]
[353039049,1739509832680,-150.0,9.034e-05,2]
[353039050,1739509832690,-150.0,9.041e-05,2]
[353039051,1739509832699,-150.0,9.041e-05,2]
[353039053,1739509832709,-200.0,9.041e-05,2]
[353039055,1739509832718,-150.0,9.05e-05,2]
[353039057,1739509832727,-150.0,9.069e-05,2]
[353039058,1739509832736,-2013.13,9.081e-05,2]
[353039060,1739509832745,-150.0,9.1e-05,2]
[353039062,1739509832754,-150.0,9.103e-05,2]
[353039064,1739509832763,-150.0,9.138e-05,2]
[353039066,1739509832772,-150.0,9.15e-05,2]
[353039068,1739509832781,-691.46,9.162e-05,2]
[353039070,1739509832790,-150.0,9.172e-05,2]
[353039072,1739509832800,-301.29,9.178e-05,2]
[353039074,1739509832809,-438.97,9.178e-05,2]
[353039076,1739509832818,-364.13,9.178e-05,2]
[353039078,1739509832827,-438.97,9.178e-05,2]
[353039080,1739509832837,-438.97,9.178e-05,2]
[353039082,1739509832846,-312.48,9.178e-05,2]
[353039084,1739509832855,-438.97,9.178e-05,2]
[353039086,1739509832865,-438.97,9.178e-05,2]
[353039088,1739509832875,-438.97,9.178e-05,2]
[353039090,1739509832884,-188.51,9.178e-05,2]
[353039092,1739509832893,-150.0,9.2e-05,2]
[353039094,1739509832902,-150.0,9.207e-05,2]
[353039096,1739509832911,-150.0,9.241e-05,2]
[353039098,1739509832920,-150.0,9.25e-05,2]
[353039100,1739509832929,-150.0,9.276e-05,2]
[353039102,1739509832938,-200.0,9.288e-05,2]
[353039104,1739509832947,-23900.0,9.288e-05,2]
[353039106,1739509832956,-150.0,9.3e-05,2]
[353039108,1739509832966,-150.0,9.31e-05,2]
[353039110,1739509832975,-150.0,9.345e-05,2]
[353039112,1739509832984,-150.0,9.35e-05,2]
[353039114,1739509832993,-150.0,9.379e-05,2]
[353039116,1739509833002,-150.0,9.4e-05,2]
[353039118,1739509833011,-150.0,9.414e-05,2]
[353039120,1739509833020,-165.84,9.422e-05,2]
[353039122,1739509833030,-150.0,9.448e-05,2]
[353039124,1739509833039,-150.0,9.45e-05,2]
[353039126,1739509833048,-150.0,9.483e-05,2]
[353039128,1739509833058,-1000.0,9.493e-05,2]
[353039130,1739509833068,-1465.65,9.493e-05,2]
[353039132,1739509833077,-150.0,9.5e-05,2]
[353039134,1739509833086,-150.0,9.517e-05,2]
[353039136,1739509833095,-150.0,9.55e-05,2]
[353039138,1739509833104,-150.0,9.552e-05,2]
[353039140,1739509833113,-500.0,9.562e-05,2]
[353039142,1739509833123,-150.0,9.586e-05,2]
[353039144,1739509833133,-150.0,9.6e-05,2]
[353039146,1739509833142,-150.0,9.621e-05,2]
[353039148,1739509833151,-732.22286292,9.646e-05,2]
[353039150,1739509833161,-150.0,9.65e-05,2]
[353039152,1739509833171,-150.0,9.655e-05,2]
[353039153,1739509833180,-150.0,9.69e-05,2]
[353039155,1739509833190,-150.0,9.7e-05,2]
[353039157,1739509833199,-150.0,9.718e-05,2]
[353039159,1739509833209,-150.0,9.724e-05,2]
[353039161,1739509833225,-150.0,9.75e-05,2]